[Event "*** Titled Tuesday 3|2 Blitz"]
[Site "Chess.com"]
[Date "2015.12.01"]
[Round "6"]
[White "StellarChessPro"]
[Black "stepanosinovsky"]
[Result "0-1"]
[WhiteElo "2247"]
[BlackElo "2210"]
[TimeControl "180+2"]
[EndTime "12:12:30 PST"]
[Termination "stepanosinovsky won by resignation"]

1. d4 {[%clk 0:03:01.9]} 1... Nf6 {[%clk 0:03:00.4]} 2. Bg5 {[%clk 0:03:01]}
2... g6 {[%clk 0:03:00.7]} 3. Bxf6 {[%clk 0:03:02.1]} 3... exf6 {[%clk
0:03:00.9]} 4. e3 {[%clk 0:03:04]} 4... Bg7 {[%clk 0:03:01.2]} 5. Ne2 {[%clk
0:03:05.9]} 5... O-O {[%clk 0:03:01.6]} 6. h4 {[%clk 0:03:07.8]} 6... h5 {[%clk
0:03:01.8]} 7. Nf4 {[%clk 0:03:09.7]} 7... c6 {[%clk 0:03:01.8]} 8. Nd2 {[%clk
0:03:09.9]} 8... d6 {[%clk 0:03:02.3]} 9. Bc4 {[%clk 0:03:10.3]} 9... d5 {[%clk
0:03:00]} 10. Bb3 {[%clk 0:03:10.9]} 10... Nd7 {[%clk 0:02:59.5]} 11. c4 {[%clk
0:03:12.1]} 11... dxc4 {[%clk 0:02:30.5]} 12. Bxc4 {[%clk 0:03:13.1]} 12... Nb6
{[%clk 0:02:30.9]} 13. Bb3 {[%clk 0:03:14.6]} 13... Nd5 {[%clk 0:02:30.2]} 14.
Qf3 {[%clk 0:03:11.1]} 14... Nxf4 {[%clk 0:02:27.1]} 15. Qxf4 {[%clk 0:03:13]}
15... f5 {[%clk 0:01:54.5]} 16. Qg3 {[%clk 0:03:06.9]} 16... Qf6 {[%clk
0:01:52]} 17. Nf3 {[%clk 0:03:07.3]} 17... Be6 {[%clk 0:01:47.9]} 18. Bxe6
{[%clk 0:03:05.6]} 18... Qxe6 {[%clk 0:01:48.8]} 19. O-O {[%clk 0:03:03.9]}
19... Rad8 {[%clk 0:01:45.4]} 20. Rfc1 {[%clk 0:03:04]} 20... Qd6 {[%clk
0:01:43.5]} 21. Qxd6 {[%clk 0:03:04.2]} 21... Rxd6 {[%clk 0:01:44.3]} 22. Rc4
{[%clk 0:03:06.1]} 22... Rfd8 {[%clk 0:01:44.2]} 23. Rac1 {[%clk 0:03:06.9]}
23... f4 {[%clk 0:01:40.3]} 24. exf4 {[%clk 0:03:07.9]} 24... Bxd4 {[%clk
0:01:40.6]} 25. Nxd4 {[%clk 0:03:09.8]} 25... Rxd4 {[%clk 0:01:41.8]} 26. g3
{[%clk 0:03:10.2]} 26... Rxc4 {[%clk 0:01:41.5]} 27. Rxc4 {[%clk 0:03:12.1]}
27... Rd2 {[%clk 0:01:42.4]} 28. Rb4 {[%clk 0:03:12.8]} 28... b5 {[%clk
0:01:43.1]} 29. Kg2 {[%clk 0:03:14]} 29... a5 {[%clk 0:01:40.8]} 30. Rb3 {[%clk
0:03:14.2]} 30... Kf8 {[%clk 0:01:21.6]} 31. Kf3 {[%clk 0:03:14.8]} 31... Ke7
{[%clk 0:01:20.3]} 32. Ke3 {[%clk 0:03:16.2]} 32... Rc2 {[%clk 0:01:21.2]} 33.
a3 {[%clk 0:03:11.4]} 33... Kd6 {[%clk 0:01:15.2]} 34. Rd3+ {[%clk 0:03:11.2]}
34... Ke6 {[%clk 0:01:11.6]} 35. b3 {[%clk 0:03:13.1]} 35... c5 {[%clk
0:01:08.9]} 36. f3 {[%clk 0:03:11.5]} 36... c4 {[%clk 0:01:03.2]} 37. bxc4
{[%clk 0:03:13.4]} 37... bxc4 {[%clk 0:01:04.3]} 38. Rd8 {[%clk 0:03:14.4]}
38... Rc3+ {[%clk 0:01:01.6]} 39. Ke4 {[%clk 0:03:13.1]} 39... f5+ {[%clk
0:01:02]} 40. Kd4 {[%clk 0:03:12.8]} 40... Rd3+ {[%clk 0:01:03.6]} 0-1

[Event "*** Titled Tuesday 3|2 Blitz"]
[Site "Chess.com"]
[Date "2015.12.01"]
[Round "6"]
[White "Frolyanov_D"]
[Black "BakaPG"]
[Result "1-0"]
[WhiteElo "2485"]
[BlackElo "2473"]
[TimeControl "180+2"]
[EndTime "12:12:37 PST"]
[Termination "Frolyanov_D won by resignation"]

1. d4 {[%clk 0:02:58.5]} 1... c5 {[%clk 0:02:57.4]} 2. d5 {[%clk 0:02:57.7]}
2... e5 {[%clk 0:02:57.5]} 3. c4 {[%clk 0:02:51.8]} 3... d6 {[%clk 0:02:57.1]}
4. Nc3 {[%clk 0:02:52.3]} 4... Be7 {[%clk 0:02:57.8]} 5. e4 {[%clk 0:02:53.1]}
5... Bg5 {[%clk 0:02:57.2]} 6. g3 {[%clk 0:02:52.3]} 6... Bxc1 {[%clk
0:02:55.8]} 7. Rxc1 {[%clk 0:02:48.1]} 7... Ne7 {[%clk 0:02:55.8]} 8. h4 {[%clk
0:02:44.8]} 8... O-O {[%clk 0:02:55.6]} 9. Bh3 {[%clk 0:02:43.4]} 9... f5 {[%clk
0:02:56]} 10. exf5 {[%clk 0:02:38.4]} 10... Nxf5 {[%clk 0:02:56.1]} 11. Nge2
{[%clk 0:02:35.7]} 11... Nd4 {[%clk 0:02:42.4]} 12. Nxd4 {[%clk 0:02:34.2]}
12... exd4 {[%clk 0:02:42]} 13. Bxc8 {[%clk 0:02:33.9]} 13... Qxc8 {[%clk
0:02:41.1]} 14. Ne4 {[%clk 0:02:24.1]} 14... Qf5 {[%clk 0:02:03.1]} 15. Qe2
{[%clk 0:02:21.2]} 15... Re8 {[%clk 0:01:53.9]} 16. Nf6+ {[%clk 0:02:16.9]}
16... gxf6 {[%clk 0:01:53.7]} 17. Qxe8+ {[%clk 0:02:16.8]} 17... Kg7 {[%clk
0:01:53.7]} 18. O-O {[%clk 0:02:05.8]} 18... d3 {[%clk 0:01:34.7]} 19. Rce1
{[%clk 0:02:03.1]} 19... d2 {[%clk 0:01:29.9]} 20. Re7+ {[%clk 0:01:35.2]} 20...
Kh6 {[%clk 0:01:28.4]} 21. Qf8+ {[%clk 0:01:34.3]} 21... Kh5 {[%clk 0:01:28.4]}
22. Qg8 {[%clk 0:01:29.2]} 22... Qg6 {[%clk 0:01:25]} 23. Rxh7+ {[%clk
0:01:28.6]} 1-0

[Event "*** Titled Tuesday 3|2 Blitz"]
[Site "Chess.com"]
[Date "2015.12.01"]
[Round "6"]
[White "MinhGTrAn"]
[Black "Colombiano07"]
[Result "1-0"]
[WhiteElo "2613"]
[BlackElo "2115"]
[TimeControl "180+2"]
[EndTime "12:12:40 PST"]
[Termination "MinhGTrAn won by resignation"]

1. d4 {[%clk 0:03:01.9]} 1... g6 {[%clk 0:02:53]} 2. e4 {[%clk 0:03:01.6]} 2...
Bg7 {[%clk 0:02:53.4]} 3. Nc3 {[%clk 0:03:03.2]} 3... c5 {[%clk 0:02:54.9]} 4.
Be3 {[%clk 0:03:04.4]} 4... Nc6 {[%clk 0:02:55.5]} 5. d5 {[%clk 0:03:05.1]} 5...
Nd4 {[%clk 0:02:56.4]} 6. Nge2 {[%clk 0:03:05.3]} 6... Nxe2 {[%clk 0:02:57.6]}
7. Bxe2 {[%clk 0:03:07.2]} 7... d6 {[%clk 0:02:59.2]} 8. Qd2 {[%clk 0:03:08.2]}
8... h6 {[%clk 0:02:57.1]} 9. O-O {[%clk 0:03:08.9]} 9... Nf6 {[%clk 0:02:58]}
10. a4 {[%clk 0:03:03.2]} 10... Ng4 {[%clk 0:02:56]} 11. Bf4 {[%clk 0:03:03.3]}
11... g5 {[%clk 0:02:55.4]} 12. Bg3 {[%clk 0:03:04.5]} 12... O-O {[%clk
0:02:55.5]} 13. h3 {[%clk 0:03:02.3]} 13... Ne5 {[%clk 0:02:49.3]} 14. f4 {[%clk
0:03:03.1]} 14... gxf4 {[%clk 0:02:50.7]} 15. Rxf4 {[%clk 0:03:03]} 15... Ng6
{[%clk 0:02:49.9]} 16. Rf2 {[%clk 0:02:52.5]} 16... Bd4 {[%clk 0:02:38.9]} 17.
Qxh6 {[%clk 0:02:53]} 17... Bxf2+ {[%clk 0:02:39.1]} 18. Bxf2 {[%clk 0:02:54.9]}
18... e6 {[%clk 0:02:37.8]} 19. dxe6 {[%clk 0:02:39.6]} 19... Bxe6 {[%clk
0:02:38.1]} 20. Rf1 {[%clk 0:02:34.5]} 20... Qe7 {[%clk 0:02:02]} 21. Bh5 {[%clk
0:02:32.8]} 21... Ne5 {[%clk 0:01:37.5]} 22. Bh4 {[%clk 0:02:21.1]} 22... Qxh4
{[%clk 0:01:16.5]} 23. Bxf7+ {[%clk 0:02:21.4]} 23... Rxf7 {[%clk 0:01:17.3]}
24. Qxh4 {[%clk 0:02:23.3]} 24... Rxf1+ {[%clk 0:01:14.8]} 25. Kxf1 {[%clk
0:02:25.2]} 25... Rf8+ {[%clk 0:01:14.8]} 26. Kg1 {[%clk 0:02:24.6]} 26... Kf7
{[%clk 0:01:15.1]} 27. Qh7+ {[%clk 0:02:23.9]} 27... Kf6 {[%clk 0:01:15.1]} 28.
Qxb7 {[%clk 0:02:22.7]} 28... Rf7 {[%clk 0:01:15.1]} 29. Qb8 {[%clk 0:02:22.4]}
29... Nc6 {[%clk 0:01:12.8]} 30. Qxd6 {[%clk 0:02:23.2]} 30... Nd4 {[%clk
0:01:10.9]} 31. Qxc5 {[%clk 0:02:18.7]} 31... Nxc2 {[%clk 0:01:12.1]} 32. Qf2+
{[%clk 0:02:14.4]} 32... Ke7 {[%clk 0:01:12.8]} 33. Qxc2 {[%clk 0:02:15.3]} 1-0

[Event "*** Titled Tuesday 3|2 Blitz"]
[Site "Chess.com"]
[Date "2015.12.01"]
[Round "6"]
[White "ChadaevNikolay"]
[Black "amaidel"]
[Result "1-0"]
[WhiteElo "2549"]
[BlackElo "2386"]
[TimeControl "180+2"]
[EndTime "12:13:04 PST"]
[Termination "ChadaevNikolay won by resignation"]

1. Nf3 {[%clk 0:02:58.4]} 1... g6 {[%clk 0:03:00.7]} 2. e4 {[%clk 0:02:58.3]}
2... Bg7 {[%clk 0:03:01.8]} 3. d4 {[%clk 0:02:59.8]} 3... d6 {[%clk 0:03:03]} 4.
Bc4 {[%clk 0:02:59.9]} 4... Nf6 {[%clk 0:03:03.1]} 5. Qe2 {[%clk 0:03:00.2]}
5... O-O {[%clk 0:03:03.5]} 6. O-O {[%clk 0:02:59.9]} 6... c6 {[%clk 0:03:04]}
7. Bb3 {[%clk 0:03:00.3]} 7... Bg4 {[%clk 0:03:03.8]} 8. Nbd2 {[%clk 0:03:00.2]}
8... Nbd7 {[%clk 0:03:03.9]} 9. h3 {[%clk 0:03:00.6]} 9... Bxf3 {[%clk
0:03:04.4]} 10. Nxf3 {[%clk 0:03:02.1]} 10... e5 {[%clk 0:03:05.4]} 11. dxe5
{[%clk 0:03:03.1]} 11... dxe5 {[%clk 0:03:05.3]} 12. c3 {[%clk 0:03:01.5]} 12...
Qe7 {[%clk 0:03:05.5]} 13. Bc2 {[%clk 0:02:58.6]} 13... Rfd8 {[%clk 0:03:04.4]}
14. g3 {[%clk 0:02:57.3]} 14... Nf8 {[%clk 0:03:03.5]} 15. Kg2 {[%clk
0:02:58.1]} 15... Qc7 {[%clk 0:02:47.7]} 16. Be3 {[%clk 0:02:58.3]} 16... Ne6
{[%clk 0:02:48.2]} 17. b4 {[%clk 0:02:58.5]} 17... c5 {[%clk 0:02:36.3]} 18.
Rac1 {[%clk 0:02:50.7]} 18... cxb4 {[%clk 0:02:29]} 19. cxb4 {[%clk 0:02:51.4]}
19... Nd4 {[%clk 0:02:30.1]} 20. Bd3 {[%clk 0:02:41.7]} 20... Qe7 {[%clk
0:02:17.2]} 21. Nxd4 {[%clk 0:02:40.6]} 21... exd4 {[%clk 0:02:17.8]} 22. Bd2
{[%clk 0:02:41.3]} 22... Rac8 {[%clk 0:01:53.2]} 23. a3 {[%clk 0:02:40.3]} 23...
Nd7 {[%clk 0:01:48.1]} 24. f4 {[%clk 0:02:40.2]} 24... Nb6 {[%clk 0:01:44.8]}
25. h4 {[%clk 0:02:27.8]} 25... Na4 {[%clk 0:01:44.3]} 26. h5 {[%clk 0:02:27.4]}
26... Nc3 {[%clk 0:01:44.9]} 27. Qf3 {[%clk 0:02:27.4]} 27... a5 {[%clk
0:01:25.5]} 28. hxg6 {[%clk 0:02:24.7]} 28... hxg6 {[%clk 0:01:25.6]} 29. bxa5
{[%clk 0:02:25.1]} 29... Qxa3 {[%clk 0:01:25.5]} 30. f5 {[%clk 0:02:09.1]} 30...
Qe7 {[%clk 0:00:54.7]} 31. f6 {[%clk 0:02:06.6]} 1-0

[Event "*** Titled Tuesday 3|2 Blitz"]
[Site "Chess.com"]
[Date "2015.12.01"]
[Round "6"]
[White "Hikaru"]
[Black "spectralsoul"]
[Result "1-0"]
[WhiteElo "2919"]
[BlackElo "2493"]
[TimeControl "180+2"]
[EndTime "12:13:27 PST"]
[Termination "Hikaru won by resignation"]

1. e4 {[%clk 0:03:01.9]} 1... d6 {[%clk 0:02:59.5]} 2. d4 {[%clk 0:03:02.8]}
2... Nf6 {[%clk 0:03:00.5]} 3. Nc3 {[%clk 0:03:04.1]} 3... c6 {[%clk 0:02:58.8]}
4. f4 {[%clk 0:03:03.6]} 4... Qa5 {[%clk 0:02:59.5]} 5. Bd3 {[%clk 0:03:04.1]}
5... e5 {[%clk 0:03:00.4]} 6. Nf3 {[%clk 0:03:05.2]} 6... Bg4 {[%clk 0:02:58.1]}
7. dxe5 {[%clk 0:03:00.9]} 7... dxe5 {[%clk 0:02:59.2]} 8. O-O {[%clk
0:03:02.5]} 8... Nbd7 {[%clk 0:02:58.2]} 9. h3 {[%clk 0:03:03.3]} 9... Bxf3
{[%clk 0:02:58.5]} 10. Qxf3 {[%clk 0:03:05.2]} 10... Bd6 {[%clk 0:02:57.2]} 11.
f5 {[%clk 0:03:04.1]} 11... h6 {[%clk 0:02:48.6]} 12. a3 {[%clk 0:03:04.9]}
12... O-O {[%clk 0:02:39.3]} 13. Kh1 {[%clk 0:03:05.5]} 13... Qc7 {[%clk
0:02:39.6]} 14. g4 {[%clk 0:03:06.3]} 14... Nh7 {[%clk 0:02:40.8]} 15. h4 {[%clk
0:03:07.4]} 15... Be7 {[%clk 0:02:42.1]} 16. g5 {[%clk 0:02:57.9]} 16... hxg5
{[%clk 0:02:42.8]} 17. hxg5 {[%clk 0:02:59.8]} 17... Bxg5 {[%clk 0:02:39.3]} 18.
Bxg5 {[%clk 0:02:55.2]} 18... Nxg5 {[%clk 0:02:39.9]} 19. Qg3 {[%clk 0:02:57.1]}
19... f6 {[%clk 0:02:24]} 20. Bc4+ {[%clk 0:02:58]} 20... Rf7 {[%clk 0:02:25.7]}
21. Rad1 {[%clk 0:02:59.1]} 21... Nb6 {[%clk 0:02:26.1]} 22. Ba2 {[%clk
0:03:00.3]} 22... Kf8 {[%clk 0:02:25.4]} 23. Qh4 {[%clk 0:02:59.3]} 23... Ke7
{[%clk 0:02:21.6]} 24. Bxf7 {[%clk 0:02:56.1]} 24... Nxf7 {[%clk 0:02:22.9]} 25.
Kg2 {[%clk 0:02:57.7]} 25... Nc4 {[%clk 0:02:19.4]} 26. Qf2 {[%clk 0:02:56.7]}
26... Qb6 {[%clk 0:02:15.9]} 27. Rfe1 {[%clk 0:02:50.5]} 27... Qxb2 {[%clk
0:02:04.3]} 28. Rd3 {[%clk 0:02:26.5]} 28... Nfd6 {[%clk 0:01:55.8]} 29. Rb1
{[%clk 0:02:22.6]} 29... Qxa3 {[%clk 0:01:44.2]} 30. Nd5+ {[%clk 0:02:23.7]}
30... cxd5 {[%clk 0:01:46.1]} 31. Rxa3 {[%clk 0:02:25.6]} 31... Nxa3 {[%clk
0:01:48]} 32. Rd1 {[%clk 0:02:04.5]} 32... d4 {[%clk 0:01:41]} 33. Qg3 {[%clk
0:02:05.5]} 33... Nxc2 {[%clk 0:01:39.4]} 34. Qxg7+ {[%clk 0:02:07.1]} 34... Nf7
{[%clk 0:01:41]} 35. Rh1 {[%clk 0:02:07.6]} 35... Ne3+ {[%clk 0:01:34.8]} 36.
Kf2 {[%clk 0:02:00.2]} 36... Nc4 {[%clk 0:01:36.7]} 37. Rh6 {[%clk 0:01:59.7]}
37... Ne3 {[%clk 0:01:38.6]} 38. Qxf6+ {[%clk 0:01:58.2]} 38... Ke8 {[%clk
0:01:35.6]} 39. Qe6+ {[%clk 0:01:57.3]} 39... Kf8 {[%clk 0:01:36.3]} 40. Rh7
{[%clk 0:01:54.1]} 1-0

[Event "*** Titled Tuesday 3|2 Blitz"]
[Site "Chess.com"]
[Date "2015.12.01"]
[Round "6"]
[White "VMikhalevski"]
[Black "Aygehovit1992"]
[Result "1-0"]
[WhiteElo "2526"]
[BlackElo "2437"]
[TimeControl "180+2"]
[EndTime "12:13:55 PST"]
[Termination "VMikhalevski won by resignation"]

1. Nf3 {[%clk 0:03:01.9]} 1... d5 {[%clk 0:03:00.5]} 2. g3 {[%clk 0:03:01.1]}
2... g6 {[%clk 0:03:01.5]} 3. Bg2 {[%clk 0:02:59.4]} 3... Bg7 {[%clk 0:03:02.8]}
4. d4 {[%clk 0:03:01]} 4... Nf6 {[%clk 0:03:02.6]} 5. c4 {[%clk 0:03:02]} 5...
dxc4 {[%clk 0:03:00.9]} 6. Na3 {[%clk 0:02:55.1]} 6... c5 {[%clk 0:02:58.5]} 7.
Nxc4 {[%clk 0:02:52.9]} 7... cxd4 {[%clk 0:02:58.9]} 8. Qxd4 {[%clk 0:02:51.6]}
8... O-O {[%clk 0:02:55.9]} 9. Qxd8 {[%clk 0:02:43.8]} 9... Rxd8 {[%clk
0:02:56.4]} 10. Nfe5 {[%clk 0:02:40.9]} 10... Nfd7 {[%clk 0:02:50.5]} 11. Nd3
{[%clk 0:02:39.3]} 11... Nc6 {[%clk 0:02:49.3]} 12. O-O {[%clk 0:02:37]} 12...
Nd4 {[%clk 0:02:50.3]} 13. e3 {[%clk 0:02:32.5]} 13... Ne2+ {[%clk 0:02:49.2]}
14. Kh1 {[%clk 0:02:34.1]} 14... Nf6 {[%clk 0:02:47.3]} 15. Nc5 {[%clk
0:02:29.9]} 15... Nxc1 {[%clk 0:02:47.2]} 16. Raxc1 {[%clk 0:02:29.9]} 16... Rb8
{[%clk 0:02:48.9]} 17. Na5 {[%clk 0:02:26.4]} 17... Ng4 {[%clk 0:02:32.6]} 18.
h3 {[%clk 0:02:08.9]} 18... Nh6 {[%clk 0:02:22]} 19. b4 {[%clk 0:02:03.8]} 19...
Rd2 {[%clk 0:02:22.6]} 20. Rcd1 {[%clk 0:02:02.6]} 20... Bc3 {[%clk 0:02:12.9]}
21. a3 {[%clk 0:01:35.8]} 21... Bf5 {[%clk 0:02:10.7]} 22. Rxd2 {[%clk 0:01:29]}
22... Bxd2 {[%clk 0:02:11.5]} 23. Rd1 {[%clk 0:01:29.9]} 23... Bc3 {[%clk
0:02:12.6]} 24. g4 {[%clk 0:01:29.7]} 24... b6 {[%clk 0:02:01.6]} 25. Nc6 {[%clk
0:01:29.2]} 25... Re8 {[%clk 0:02:02.2]} 26. Na4 {[%clk 0:01:25.8]} 26... Bc2
{[%clk 0:02:00.1]} 27. Nxc3 {[%clk 0:01:26.7]} 27... Bxd1 {[%clk 0:02:01.1]} 28.
Nxd1 {[%clk 0:01:28.3]} 28... Kf8 {[%clk 0:01:57.1]} 29. Nxa7 {[%clk 0:01:26.3]}
29... Rd8 {[%clk 0:01:56.8]} 30. Nc3 {[%clk 0:01:26.2]} 30... Rd2 {[%clk
0:01:57.2]} 31. Kg1 {[%clk 0:01:24.8]} 31... f5 {[%clk 0:01:58.4]} 32. gxf5
{[%clk 0:01:21]} 32... Nxf5 {[%clk 0:01:59.3]} 33. Nd5 {[%clk 0:01:14.2]} 33...
Ra2 {[%clk 0:01:57.2]} 34. Nb5 {[%clk 0:01:13.6]} 34... Nd6 {[%clk 0:01:53.7]}
35. Nxd6 {[%clk 0:01:12.8]} 35... exd6 {[%clk 0:01:54.7]} 36. Nxb6 {[%clk
0:01:13.7]} 36... Rxa3 {[%clk 0:01:56.3]} 37. Bc6 {[%clk 0:01:13.9]} 37... Rb3
{[%clk 0:01:54.5]} 38. Nd5 {[%clk 0:01:13.8]} 38... Rb1+ {[%clk 0:01:52.3]} 39.
Kg2 {[%clk 0:01:13.7]} 39... Rc1 {[%clk 0:01:54.2]} 40. b5 {[%clk 0:01:14.3]}
40... Kf7 {[%clk 0:01:55.9]} 41. b6 {[%clk 0:01:14.9]} 41... Rb1 {[%clk
0:01:57.2]} 42. b7 {[%clk 0:01:15.4]} 42... Ke6 {[%clk 0:01:58.6]} 43. Nc7+
{[%clk 0:01:15.1]} 43... Ke5 {[%clk 0:01:59.8]} 44. Nb5 {[%clk 0:01:15.4]} 1-0

[Event "*** Titled Tuesday 3|2 Blitz"]
[Site "Chess.com"]
[Date "2015.12.01"]
[Round "6"]
[White "E-Shaposhnikov"]
[Black "Rikikits"]
[Result "0-1"]
[WhiteElo "2499"]
[BlackElo "2583"]
[TimeControl "180+2"]
[EndTime "12:14:10 PST"]
[Termination "Rikikits won by resignation"]

1. e4 {[%clk 0:02:55.4]} 1... c5 {[%clk 0:03:00.5]} 2. Nf3 {[%clk 0:02:56.2]}
2... d6 {[%clk 0:03:02]} 3. Bc4 {[%clk 0:02:57.2]} 3... Nf6 {[%clk 0:03:03]} 4.
e5 {[%clk 0:02:58.4]} 4... dxe5 {[%clk 0:03:03.9]} 5. Nxe5 {[%clk 0:02:59.6]}
5... e6 {[%clk 0:03:05.3]} 6. Qe2 {[%clk 0:03:00.8]} 6... Be7 {[%clk 0:03:03.7]}
7. b3 {[%clk 0:03:01.6]} 7... O-O {[%clk 0:03:04.6]} 8. Bb2 {[%clk 0:03:02.8]}
8... a6 {[%clk 0:03:04.4]} 9. a4 {[%clk 0:03:03.4]} 9... Nfd7 {[%clk 0:02:58.6]}
10. f4 {[%clk 0:03:00.8]} 10... Bh4+ {[%clk 0:02:52.2]} 11. g3 {[%clk
0:02:58.6]} 11... Bf6 {[%clk 0:02:53.6]} 12. Nc3 {[%clk 0:02:52.7]} 12... Qc7
{[%clk 0:02:45.7]} 13. Ne4 {[%clk 0:02:28.5]} 13... Be7 {[%clk 0:02:23.4]} 14.
O-O {[%clk 0:02:21.7]} 14... Nc6 {[%clk 0:02:20.2]} 15. Nxc6 {[%clk 0:02:18]}
15... Qxc6 {[%clk 0:02:20.9]} 16. f5 {[%clk 0:02:08.9]} 16... exf5 {[%clk
0:02:20.1]} 17. Rxf5 {[%clk 0:02:08.3]} 17... Nb6 {[%clk 0:02:21.4]} 18. Re5
{[%clk 0:01:33.4]} 18... Nxc4 {[%clk 0:02:20.4]} 19. bxc4 {[%clk 0:01:29.8]}
19... Be6 {[%clk 0:02:15.8]} 20. d3 {[%clk 0:01:21.8]} 20... f6 {[%clk
0:01:55.7]} 21. Rh5 {[%clk 0:01:03.2]} 21... Bf7 {[%clk 0:01:51.7]} 22. Rf5
{[%clk 0:01:00.8]} 22... Bg6 {[%clk 0:01:50.4]} 23. Rd5 {[%clk 0:00:59.7]} 23...
Rae8 {[%clk 0:01:50.1]} 24. Qf3 {[%clk 0:00:49]} 24... f5 {[%clk 0:01:39.9]} 25.
Nf2 {[%clk 0:00:34.5]} 25... Bg5 {[%clk 0:01:39.4]} 26. Bc1 {[%clk 0:00:23.4]}
26... Re1+ {[%clk 0:01:37.8]} 27. Kg2 {[%clk 0:00:24.9]} 27... Rxc1 {[%clk
0:01:37]} 28. Rxc1 {[%clk 0:00:25.3]} 28... Bxc1 {[%clk 0:01:38.9]} 29. Nh3
{[%clk 0:00:23.7]} 29... Bf7 {[%clk 0:01:33.2]} 30. Rxf5 {[%clk 0:00:19.6]}
30... Qxf3+ {[%clk 0:01:34.1]} 31. Rxf3 {[%clk 0:00:21.2]} 31... Be8 {[%clk
0:01:36]} 0-1

[Event "*** Titled Tuesday 3|2 Blitz"]
[Site "Chess.com"]
[Date "2015.12.01"]
[Round "6"]
[White "bugsbunny444"]
[Black "jcibarra"]
[Result "0-1"]
[WhiteElo "2348"]
[BlackElo "2508"]
[TimeControl "180+2"]
[EndTime "12:14:11 PST"]
[Termination "jcibarra won by resignation"]

1. Nf3 {[%clk 0:02:58]} 1... Nf6 {[%clk 0:03:00.8]} 2. c4 {[%clk 0:02:57.1]}
2... g6 {[%clk 0:03:02]} 3. b4 {[%clk 0:02:57.1]} 3... Bg7 {[%clk 0:03:02.2]} 4.
Bb2 {[%clk 0:02:55]} 4... O-O {[%clk 0:03:03.8]} 5. g3 {[%clk 0:02:56]} 5... d6
{[%clk 0:03:05.4]} 6. Bg2 {[%clk 0:02:56.6]} 6... e5 {[%clk 0:03:07]} 7. O-O
{[%clk 0:02:58.3]} 7... e4 {[%clk 0:03:07.1]} 8. Nd4 {[%clk 0:02:54.6]} 8... c5
{[%clk 0:03:04.7]} 9. Nc2 {[%clk 0:02:37.1]} 9... Nc6 {[%clk 0:03:04.8]} 10. b5
{[%clk 0:02:33.8]} 10... Na5 {[%clk 0:03:01.2]} 11. d3 {[%clk 0:02:24]} 11...
exd3 {[%clk 0:03:02.3]} 12. exd3 {[%clk 0:02:17.9]} 12... Bg4 {[%clk 0:03:03.7]}
13. Qc1 {[%clk 0:02:00.9]} 13... Be2 {[%clk 0:03:03.4]} 14. Nd2 {[%clk
0:01:24.4]} 14... Bxd3 {[%clk 0:03:02.5]} 15. Rd1 {[%clk 0:01:06.6]} 15... Nxc4
{[%clk 0:03:01.8]} 16. Nxc4 {[%clk 0:01:07.5]} 16... Bxc4 {[%clk 0:03:03.7]} 17.
Na3 {[%clk 0:00:57.3]} 17... Be2 {[%clk 0:02:57.9]} 18. Re1 {[%clk 0:00:54]}
18... Bg4 {[%clk 0:02:58.2]} 19. Bxb7 {[%clk 0:00:54.7]} 19... Rb8 {[%clk
0:02:59]} 20. Bc6 {[%clk 0:00:47]} 20... Bd7 {[%clk 0:02:46.7]} 21. Bxd7 {[%clk
0:00:38]} 21... Qxd7 {[%clk 0:02:48.6]} 22. Qd2 {[%clk 0:00:24.2]} 22... d5
{[%clk 0:02:46.4]} 23. Rad1 {[%clk 0:00:13]} 23... Rfd8 {[%clk 0:02:47.6]} 24.
Qa5 {[%clk 0:00:12]} 24... d4 {[%clk 0:02:35.8]} 25. Rc1 {[%clk 0:00:08.4]}
25... Bf8 {[%clk 0:02:31.5]} 26. Red1 {[%clk 0:00:04.8]} 26... Nd5 {[%clk
0:02:29.9]} 27. Qd2 {[%clk 0:00:05.1]} 27... Qh3 {[%clk 0:02:27]} 28. Qe2 {[%clk
0:00:05.9]} 28... Nb4 {[%clk 0:02:23.7]} 29. Ba1 {[%clk 0:00:06]} 29... Re8
{[%clk 0:02:22.9]} 30. Qf1 {[%clk 0:00:06.5]} 30... Qxf1+ {[%clk 0:02:20.9]} 31.
Kxf1 {[%clk 0:00:07.7]} 31... Nxa2 {[%clk 0:02:22.8]} 32. Rc4 {[%clk 0:00:07.2]}
32... Nb4 {[%clk 0:02:23.2]} 33. Rb1 {[%clk 0:00:04.2]} 33... Nd5 {[%clk
0:02:21.9]} 34. Rc2 {[%clk 0:00:04.3]} 34... Re6 {[%clk 0:02:16.1]} 35. Nc4
{[%clk 0:00:05.3]} 35... Nb4 {[%clk 0:02:13.4]} 36. Re2 {[%clk 0:00:05.7]} 36...
Rxe2 {[%clk 0:02:12.9]} 37. Kxe2 {[%clk 0:00:07.2]} 37... Rxb5 {[%clk
0:02:14.6]} 0-1

[Event "*** Titled Tuesday 3|2 Blitz"]
[Site "Chess.com"]
[Date "2015.12.01"]
[Round "6"]
[White "alexsuper1987"]
[Black "MateusViageiro"]
[Result "0-1"]
[WhiteElo "2189"]
[BlackElo "2273"]
[TimeControl "180+2"]
[EndTime "12:14:48 PST"]
[Termination "MateusViageiro won by resignation"]

1. e4 {[%clk 0:03:01.9]} 1... c5 {[%clk 0:02:59.7]} 2. Nf3 {[%clk 0:03:02.6]}
2... d6 {[%clk 0:03:00.8]} 3. d4 {[%clk 0:03:04.3]} 3... cxd4 {[%clk 0:03:01.8]}
4. Nxd4 {[%clk 0:03:06.2]} 4... Nf6 {[%clk 0:03:03.3]} 5. Nc3 {[%clk 0:03:07.6]}
5... a6 {[%clk 0:03:04.3]} 6. Be3 {[%clk 0:03:09.1]} 6... Ng4 {[%clk 0:03:04.7]}
7. Bg5 {[%clk 0:03:02.2]} 7... h6 {[%clk 0:03:05.4]} 8. Bc1 {[%clk 0:03:01.3]}
8... Nc6 {[%clk 0:03:04.5]} 9. h3 {[%clk 0:03:02.1]} 9... Nge5 {[%clk
0:03:05.5]} 10. Be2 {[%clk 0:03:01.9]} 10... g5 {[%clk 0:03:02.9]} 11. O-O
{[%clk 0:03:01.8]} 11... Bg7 {[%clk 0:03:03.8]} 12. Be3 {[%clk 0:02:58.6]} 12...
O-O {[%clk 0:03:03.3]} 13. f4 {[%clk 0:02:55.4]} 13... gxf4 {[%clk 0:02:57.8]}
14. Nxc6 {[%clk 0:02:56.1]} 14... Nxc6 {[%clk 0:02:55.8]} 15. Bxf4 {[%clk
0:02:57.4]} 15... Qb6+ {[%clk 0:02:55.4]} 16. Kh1 {[%clk 0:02:54.2]} 16... Qxb2
{[%clk 0:02:56.3]} 17. Nd5 {[%clk 0:02:51.2]} 17... Qxa1 {[%clk 0:02:55.4]} 18.
Qd3 {[%clk 0:02:24.6]} 18... Qd4 {[%clk 0:02:53.2]} 19. Qg3 {[%clk 0:02:25.7]}
19... Kh8 {[%clk 0:02:33.3]} 20. Qh4 {[%clk 0:01:54.7]} 20... Kh7 {[%clk
0:01:30]} 21. Bd3 {[%clk 0:01:37.5]} 21... Ne5 {[%clk 0:01:13.3]} 22. Qxe7
{[%clk 0:01:07.8]} 22... Nxd3 {[%clk 0:00:52.9]} 23. cxd3 {[%clk 0:01:09.2]}
23... Be6 {[%clk 0:00:52.4]} 24. Be3 {[%clk 0:00:57.9]} 24... Qxd3 {[%clk
0:00:46.4]} 25. Rf3 {[%clk 0:00:52.3]} 25... Bxd5 {[%clk 0:00:41.5]} 26. exd5
{[%clk 0:00:44]} 26... Rae8 {[%clk 0:00:40.9]} 27. Qxd6 {[%clk 0:00:37.3]} 27...
Rxe3 {[%clk 0:00:40.4]} 0-1